bitfinex-derivatives/quotes_ETHF0:USTF0_20250123
["timestamp","ask_amount","ask_price","bid_price","bid_amount"]
[1737647539275,4.9934,3255.8,3254.6,3.2078]
[1737647539574,2.50297,3255.7,3254.8,0.61442]
[1737647539780,3.2078,3255.8,3255.1,0.61437]
[1737647539979,3.82205,3255.8,3254.9,0.61441]
[1737647540282,3.21240737,3255.8,3255.1,0.61438]
[1737647540581,0.6143,3255.5,3254.7,1.8953]
[1737647540874,3.21240737,3255.8,3254.7,1.8953]
[1737647541069,0.61428,3255.7,3254.7,2.50974]
[1737647541678,3.21240737,3255.8,3254.7,1.8953]
[1737647542183,3.21240737,3255.8,3255.0,0.61438]
[1737647542376,3.21240737,3255.8,3255.1,0.61437]
[1737647543175,3.21240737,3255.8,3255.0,0.61439]
[1737647543376,3.21240737,3255.8,3255.0,3.2078]
[1737647543875,3.21240737,3255.8,3255.0,3.82218]
[1737647544076,0.61428,3255.6,3255.0,3.2078]
[1737647544378,0.61438,3255.1,3255.0,3.2078]
[1737647544579,6.56559866,3255.4,3254.1,0.00460737]
[1737647544783,0.61445,3254.8,3254.1,0.00460737]
[1737647545574,3.2078,3254.9,3254.1,0.00460737]
[1737647545769,0.61449,3254.6,3254.1,0.00460737]
[1737647545971,3.2078,3254.9,3254.1,0.00460737]
[1737647546280,0.61436,3255.2,3254.3,0.61452]
[1737647546467,3.82215,3255.3,3254.5,0.61448]
[1737647546677,3.2078,3255.3,3254.6,0.61446]
[1737647546980,3.2078,3255.3,3254.8,3.82222]
[1737647547185,3.2078,3255.3,3254.8,3.2078]
[1737647547379,0.61428,3255.6,3254.8,3.2078]
[1737647547571,1.7785,3255.7,3254.8,3.2078]
[1737647547880,1.7785,3255.7,3254.3,3.45162869]
[1737647548174,1.7785,3255.7,3254.7,3.2078]
[1737647548381,1.7785,3255.7,3254.8,1.7629]
[1737647548582,0.61433,3255.4,3254.8,1.7629]
[1737647548881,0.61435,3255.3,3254.8,1.7629]
[1737647549279,0.61437,3255.2,3254.8,1.7629]
[1737647549778,0.61439,3255.1,3254.7,3.2078]
[1737647549981,0.61436,3255.2,3254.7,3.2078]
[1737647550175,3.2078,3255.5,3254.7,3.2078]
[1737647550486,0.61443,3254.8,3254.7,3.2078]
[1737647550983,3.2078,3255.1,3254.7,3.2078]
[1737647550984,1.8018,3255.1,3254.7,3.2078]
[1737647551178,3.2078,3255.5,3254.7,3.2078]
[1737647551484,0.61438,3255.1,3254.7,3.2078]
[1737647551781,0.61437,3255.2,3254.7,3.2078]
[1737647551985,3.2078,3255.5,3254.7,3.2078]
[1737647552180,0.61436,3255.2,3254.7,3.2078]
[1737647552380,0.61441,3255.0,3254.7,3.2078]
[1737647552872,3.2078,3255.5,3254.7,3.2078]
[1737647553077,0.61443,3254.8,3254.7,3.2078]
[1737647553284,1.53581,3255.4,3254.2,1.7629]
[1737647553477,0.61445,3254.8,3254.2,1.7629]
[1737647553779,0.61445,3254.8,3254.2,2.37745]
[1737647553976,1.8028,3255.3,3254.2,1.7629]
[1737647554277,0.61436,3255.2,3254.6,0.61447]
[1737647554478,3.2078,3255.5,3254.5,3.2078]
[1737647554681,0.61433,3255.4,3254.7,0.61444]
[1737647554879,3.2078,3255.5,3255.0,0.61438]
[1737647555084,3.2078,3255.5,3254.9,3.2078]
[1737647555283,0.61441,3255.0,3254.6,1.8535]
[1737647555585,3.2078,3255.5,3254.6,1.8535]
[1737647555775,0.6144,3255.1,3254.6,1.8535]
[1737647555974,3.2078,3255.5,3254.6,1.8535]
[1737647556274,0.61436,3255.2,3254.8,3.2078]
[1737647556675,0.61435,3255.3,3254.7,3.82224]
[1737647557076,3.2078,3255.5,3254.7,3.2078]
[1737647557279,0.61443,3254.8,3254.7,3.2078]
[1737647557582,3.2078,3255.5,3254.3,3.2078]
[1737647557886,3.2078,3255.5,3254.3,4.9982]
[1737647558080,0.61439,3255.1,3254.4,0.61451]
[1737647558382,3.2078,3255.5,3254.8,3.2078]
[1737647558581,0.61439,3255.1,3254.8,3.2078]
[1737647559383,3.2078,3255.5,3254.4,3.2078]
[1737647559679,0.61441,3255.0,3254.4,3.8223]
[1737647560086,0.61441,3255.0,3254.4,3.2078]
[1737647560288,0.61441,3255.0,3254.5,0.61449]
[1737647560584,0.61439,3255.1,3254.5,0.61449]
[1737647560789,3.2078,3255.5,3254.9,0.61441]
[1737647561080,0.61437,3255.2,3254.8,3.2078]
[1737647561479,0.61437,3255.2,3254.9,40.8]
[1737647561693,3.2078,3255.5,3254.8,3.2078]
[1737647561881,0.61441,3254.9,3254.8,3.2078]
[1737647562082,0.61441,3254.9,3254.4,3.2078]
[1737647562586,2.15024,3255.3,3254.4,3.2078]
[1737647562791,0.61443,3254.8,3254.4,3.2078]
[1737647563087,6.1089447,3255.1,3254.4,3.2078]
[1737647563683,0.61446,3254.7,3254.4,3.2078]
[1737647563881,3.2078,3255.1,3254.7,0.61444]
[1737647564079,3.2078,3255.1,3254.4,3.2078]
[1737647564481,0.61444,3254.8,3254.4,3.2078]
[1737647564881,0.61447,3254.7,3254.4,3.2078]
[1737647565084,3.2078,3255.1,3254.4,3.2078]
[1737647565393,0.61446,3254.7,3254.2,1.7629]
[1737647565586,0.61444,3254.8,3254.2,1.7629]
[1737647565793,0.61444,3254.8,3254.2,2.37744]
[1737647566290,3.2078,3255.1,3254.2,2.37744]
[1737647566291,3.2078,3255.1,3254.5,3.2078]
[1737647566492,0.61441,3255.0,3254.5,3.2078]
[1737647566684,3.2078,3255.1,3254.5,3.2078]
[1737647566884,0.61441,3255.0,3254.5,3.2078]
[1737647567391,3.2078,3255.1,3254.6,0.61446]
[1737647567584,3.2078,3255.1,3254.5,3.2078]
[1737647567984,3.2078,3255.1,3254.6,0.61446]
[1737647568185,3.82218,3255.1,3254.6,0.61446]
[1737647568386,3.2078,3255.1,3254.7,0.61445]
[1737647568787,3.2078,3255.1,3254.6,0.61446]
[1737647569191,3.2078,3255.1,3254.5,3.2078]
[1737647569588,3.2078,3255.1,3254.6,0.61446]
[1737647569885,3.82218,3255.1,3254.6,0.61446]
[1737647570089,0.6144,3255.0,3254.5,3.82228]
[1737647570288,3.2078,3255.5,3254.6,2.9011447]
[1737647570487,3.2078,3255.5,3255.0,6.1089447]
[1737647570685,5.88390263,3255.8,3255.7,0.61426]
[1737647571192,1.85651,3255.8,3255.7,5.61426]
[1737647571398,7.03276515,3256.5,3255.7,5.0]
[1737647571587,6.5373747,3256.7,3256.4,6.7230747]
[1737647571905,6.5373747,3256.7,3256.6,0.61409]
[1737647572290,10.5678044,3257.6,3256.6,5.0]
[1737647572490,0.00460737,3257.0,3256.9,3.82184]
[1737647572685,0.00460737,3257.0,3256.9,6.7229847]
[1737647573097,0.00460737,3257.0,3256.9,11.7229847]
[1737647573296,1.43698916,4162.8,3256.9,11.7229847]
[1737647573297,3.2078,3258.5,3256.9,8.2078]
[1737647573494,3.2078,3258.5,3257.9,2.9011447]
[1737647573799,3.2078,3258.5,3258.0,0.61383]
[1737647573988,3.2078,3258.5,3257.9,0.61383]
[1737647574190,3.2078,3258.5,3257.8,5.19915232]
[1737647574388,3.2078,3258.5,3257.8,5.81302232]
[1737647574694,3.21240737,3258.5,3257.8,1.8564]
[1737647574905,0.61377,3258.4,3257.8,1.8564]
[1737647575196,3.21240737,3258.5,3257.7,3.2078]
[1737647575197,0.61379,3258.3,3257.7,3.2078]
[1737647575493,3.2078,3258.0,3257.2,4.9822]
[1737647575694,0.61388,3257.8,3257.2,4.9822]
[1737647575898,0.61394,3257.4,3257.2,3.2078]
[1737647576100,3.2078,3258.0,3257.2,3.2078]
[1737647576493,0.6139,3257.7,3257.2,3.2078]
[1737647576992,3.2078,3258.0,3257.2,3.2078]
[1737647577491,3.2078,3258.4,3257.6,3.2078]
[1737647578000,0.61381,3258.2,3257.6,3.2078]
[1737647578191,0.61383,3258.1,3257.6,3.2078]
[1737647578797,3.2078,3258.4,3257.6,3.2078]
[1737647579097,0.61382,3258.1,3257.6,3.2078]
[1737647580102,0.61383,3258.0,3257.6,3.2078]
[1737647580297,0.61382,3258.1,3257.6,3.2078]
[1737647580799,0.61383,3258.0,3257.6,3.2078]
[1737647580999,3.2078,3257.9,3257.1,3.2078]
[1737647581208,7.25219523,3258.3,3257.1,3.2078]
[1737647581396,3.2078,3258.3,3257.1,3.2078]
[1737647581894,3.82159,3258.3,3257.1,3.2078]
[1737647582088,3.2078,3258.3,3257.7,0.61389]
[1737647582284,0.00460737,3258.5,3257.9,3.2078]
[1737647582698,0.61383,3258.0,3257.9,3.2078]
[1737647583299,0.61379,3258.2,3257.5,3.2078]
[1737647583491,0.61382,3258.1,3257.5,3.2078]
[1737647583689,0.6139,3257.7,3257.5,3.2078]
[1737647583898,0.61388,3257.8,3257.5,3.2078]
[1737647584095,0.61383,3258.1,3257.5,3.2078]
[1737647584296,0.00460737,3258.5,3257.5,3.2078]
[1737647584493,0.61385,3257.9,3257.5,3.2078]
[1737647585493,0.61384,3258.0,3257.5,3.2078]
[1737647585697,3.2078,3258.2,3257.5,3.2078]
[1737647585993,0.61384,3258.0,3257.5,3.2078]
[1737647586190,3.2078,3258.2,3257.5,3.2078]
[1737647586799,0.61386,3257.9,3257.5,3.2078]
[1737647587392,3.2078,3258.2,3257.5,3.2078]
[1737647587796,3.2078,3258.2,3257.1,3.2078]
[1737647588092,0.61387,3257.8,3257.2,0.61398]
[1737647588294,0.61387,3257.8,3257.1,3.2078]
[1737647588498,0.61387,3257.8,3257.1,3.82179]
[1737647588702,0.00460737,3258.5,3257.6,3.2078]
[1737647589198,0.61389,3257.7,3257.6,3.2078]
[1737647589399,3.2078,3258.4,3257.3,3.2078]
[1737647589590,0.61392,3257.6,3257.3,3.2078]
[1737647589796,0.61394,3257.4,3257.3,3.2078]
[1737647589997,0.61397,3257.3,3256.9,1.8965]
[1737647590196,0.614,3257.2,3256.9,1.8965]
[1737647590398,0.61395,3257.4,3256.9,1.8965]
[1737647590703,0.61398,3257.2,3256.9,1.8965]
[1737647591107,0.61395,3257.4,3256.9,1.8965]
[1737647591299,0.61389,3257.7,3256.9,1.8965]
[1737647591495,0.61394,3257.5,3256.9,1.8965]
[1737647591691,1.823,3257.8,3256.9,1.8965]
[1737647591898,0.6139,3257.7,3257.0,0.61401]
[1737647592201,1.823,3257.8,3256.9,1.8965]
[1737647592408,0.61378,3258.3,3257.4,0.61394]
[1737647592599,0.61383,3258.1,3257.4,0.61394]
[1737647592796,1.823,3258.4,3257.5,3.2078]
[1737647593103,1.53463,3257.9,3257.1,3.2078]
[1737647593404,0.61398,3257.3,3257.1,3.2078]
[1737647593702,1.8516,3257.9,3257.1,3.2078]
[1737647593902,0.61394,3257.5,3257.1,3.2078]
[1737647594097,1.8516,3257.9,3257.1,3.2078]
[1737647594296,0.61387,3257.8,3257.1,3.2078]
[1737647594493,1.8516,3257.9,3257.1,3.2078]
[1737647594811,0.61393,3257.5,3257.1,3.2078]
[1737647595304,0.61392,3257.6,3257.1,3.2078]
[1737647595504,1.8516,3257.9,3257.1,3.2078]
[1737647595805,0.61398,3257.2,3257.1,3.2078]
[1737647596396,3.2078,3257.3,3256.6,4.9303]
[1737647596602,3.2078,3257.3,3256.6,3.2078]
[1737647596901,0.61405,3256.9,3256.6,3.2078]
[1737647597106,3.2078,3257.3,3256.6,3.2078]
[1737647597300,1.53496,3257.2,3256.6,3.2078]
[1737647597501,1.53496,3257.2,3256.3,0.00460737]
[1737647597502,0.61413,3256.4,3256.3,0.00460737]
[1737647597919,3.82193,3256.4,3256.3,0.00460737]
[1737647598799,3.2078,3256.4,3256.3,0.00460737]
[1737647599006,2.51041,3256.6,3256.3,3.21240737]
[1737647599209,1.8963,3256.6,3256.4,3.2078]
[1737647599402,0.00460737,3256.7,3256.4,3.2078]
[1737647599403,0.61869737,3256.7,3256.4,3.2078]
[1737647599595,0.00460737,3256.7,3256.4,3.2078]
[1737647600004,0.00460737,3256.7,3256.6,0.6141]
[1737647600395,0.6139,3257.7,3256.6,8.5716]
[1737647600604,3.2078,3257.8,3257.2,3.2078]
[1737647600803,0.61389,3257.7,3257.3,40.8]
[1737647601201,3.2078,3257.8,3257.3,40.8]
[1737647601401,3.2078,3257.8,3257.4,0.61394]
[1737647601604,3.2078,3257.8,3257.4,1.8058]
[1737647602107,3.82167,3257.8,3257.4,1.8058]
[1737647602309,3.2078,3257.8,3257.4,1.8058]
[1737647602502,0.61846737,3257.9,3257.6,3.2078]
[1737647602698,0.00460737,3257.9,3257.6,3.2078]
[1737647602902,0.00460737,3257.9,3256.7,1.8362]
[1737647602903,1.53477,3257.6,3256.7,3.2078]
[1737647603111,2.89605911,3257.1,3256.3,3.21240737]
[1737647603404,0.61413,3256.4,3256.3,0.00460737]
[1737647603811,3.2078,3256.9,3256.3,0.00460737]
[1737647604204,3.2078,3256.9,3256.3,3.21240737]
[1737647604609,5.01313,3257.5,3256.3,0.00460737]
[1737647604808,0.61405,3256.9,3256.3,0.00460737]
[1737647605114,3.2078,3257.3,3256.3,3.21240737]
[1737647605508,0.61405,3256.9,3256.3,3.82655737]
[1737647605705,3.2078,3257.4,3256.3,3.21240737]
[1737647605912,3.2078,3258.7,3257.3,3.2078]
[1737647606111,3.2078,3258.7,3257.8,3.2078]
[1737647606414,0.61373,3258.6,3257.9,0.61384]
[1737647606815,0.61378,3258.3,3257.8,3.2078]
[1737647607016,0.61376,3258.5,3257.8,3.82167]
[1737647607215,0.61375,3258.5,3257.8,3.82167]
[1737647607415,0.00305463,3258.4,3257.8,3.82167]
[1737647607810,0.61681463,3258.4,3257.8,3.2078]
[1737647608111,0.00305463,3258.4,3257.8,3.2078]
[1737647608307,0.61681463,3258.4,3257.8,3.2078]
[1737647608508,0.00305463,3258.4,3257.9,0.61384]
[1737647608708,0.00305463,3258.4,3257.8,3.2078]
[1737647609317,0.00305463,3258.4,3258.1,0.6138]
[1737647609616,0.00305463,3258.4,3258.1,41.4138]
[1737647609915,0.00305463,3258.4,3258.2,2.35758]
[1737647610114,0.00305463,3258.4,3258.2,1.7438]
[1737647610913,0.61681463,3258.4,3258.2,1.7438]
[1737647611211,0.61385,3258.0,3257.8,3.2078]
[1737647611411,0.00305463,3258.4,3257.8,3.2078]
[1737647611614,0.61381,3258.2,3257.8,3.2078]
[1737647611916,0.00305463,3258.4,3257.8,3.2078]
[1737647612213,0.00305463,3258.4,3257.8,3.82166]
[1737647612412,0.00305463,3258.4,3257.9,0.61385]
[1737647612722,0.00305463,3258.4,3257.9,0.61384]
[1737647613015,0.00305463,3258.4,3257.8,3.2078]
[1737647613221,0.6138,3258.2,3257.8,3.2078]
[1737647613813,0.00305463,3258.4,3257.8,3.2078]
[1737647614015,0.61377,3258.3,3257.8,3.2078]
[1737647614318,0.00305463,3258.4,3257.8,3.2078]
[1737647614716,0.61381,3258.2,3257.8,3.2078]
[1737647614911,0.61682463,3258.4,3257.8,3.2078]
[1737647615215,0.61681463,3258.4,3257.8,3.2078]
[1737647615418,0.61378,3258.3,3257.8,3.2078]
[1737647615609,0.61682463,3258.4,3257.8,3.2078]
[1737647616310,0.6138,3258.2,3257.8,3.2078]
[1737647616516,0.00305463,3258.4,3257.8,3.2078]
[1737647617015,0.00305463,3258.4,3258.1,0.6138]
[1737647617223,0.00305463,3258.4,3257.8,3.2078]
[1737647617613,0.00305463,3258.4,3257.9,0.61385]
[1737647618013,0.00305463,3258.4,3257.8,3.2078]
[1737647618209,0.00305463,3258.4,3257.8,3.82166]
[1737647618420,0.00305463,3258.4,3257.9,0.61385]
[1737647618917,0.61378,3258.3,3257.8,3.2078]
[1737647619112,0.00305463,3258.4,3257.8,3.2078]
[1737647619312,0.61682463,3258.4,3257.8,3.82167]
[1737647619511,0.61378,3258.3,3257.8,3.2078]
[1737647620313,0.00305463,3258.4,3257.8,3.2078]
[1737647620513,0.6138,3258.2,3257.8,3.2078]
[1737647621033,0.61378,3258.3,3257.8,3.2078]
[1737647621522,0.61681463,3258.4,3257.8,3.2078]
[1737647621713,0.61378,3258.3,3257.8,3.2078]
[1737647622216,0.00305463,3258.4,3257.8,3.2078]
[1737647622622,0.61381,3258.2,3257.8,3.2078]
[1737647622822,0.61385,3257.9,3257.8,3.2078]
[1737647623323,0.61387,3257.8,3257.7,0.00460737]
[1737647623510,7.48847,3257.8,3257.7,0.00460737]
[1737647623709,0.61387,3257.8,3257.7,0.00460737]
[1737647623917,0.61386,3257.9,3257.7,0.00460737]
[1737647624318,0.61387,3257.8,3257.7,0.00460737]
[1737647625723,2.38637,3257.8,3257.7,0.00460737]
[1737647626527,0.61404,3256.9,3256.8,3.7211]
[1737647626825,0.61406,3256.8,3256.6,3.2078]
[1737647627018,1.53493,3257.3,3256.6,3.2078]
[1737647627526,4.74268,3257.4,3256.6,3.2078]
[1737647627726,4.63758024,3257.5,3256.6,3.2078]
[1737647627727,7.16692143,3257.9,3257.0,3.2078]
[1737647628021,0.61388,3257.8,3257.3,0.61395]
[1737647628214,7.16692143,3257.9,3257.1,1.7417]
[1737647628414,0.6139,3257.7,3257.2,0.61397]
[1737647628817,0.61387,3257.8,3257.1,3.5544]
[1737647629019,0.61388,3257.8,3257.2,0.61398]
[1737647629612,0.61386,3257.9,3257.1,6.44968024]
[1737647629813,0.61389,3257.7,3257.1,3.5544]
[1737647630124,10.37472143,3258.0,3257.1,3.5544]
[1737647630324,0.6139,3257.7,3257.1,4.16839]
[1737647630713,10.37472143,3258.0,3257.1,3.5544]
[1737647631026,7.16692143,3258.0,3257.4,3.2078]
[1737647631428,7.16692143,3258.0,3257.5,0.61392]
[1737647631627,7.16692143,3258.0,3257.4,3.82173]
[1737647631825,7.78075143,3258.0,3257.4,3.2078]
[1737647632122,7.16692143,3258.0,3257.4,3.2078]
[1737647632324,7.16692143,3258.0,3257.9,3.2078]
[1737647633528,7.78075143,3258.0,3257.9,3.2078]
[1737647633726,7.78075143,3258.0,3257.4,3.82174]
[1737647634127,0.61377,3258.3,3257.4,3.82172]
[1737647634327,0.00305463,3258.4,3257.4,3.82172]
[1737647634628,0.6139,3257.7,3257.4,3.2078]
[1737647635332,1.7976,3258.1,3257.4,3.2078]
[1737647635524,0.00305463,3258.4,3257.4,3.2078]
[1737647635724,0.00305463,3258.4,3257.9,3.2078]
[1737647635924,0.00305463,3258.4,3257.9,3.82164]
[1737647636321,0.61682463,3258.4,3257.9,3.2078]
[1737647636523,0.61682463,3258.4,3257.9,3.82165]
[1737647636524,0.00305463,3258.4,3257.9,3.82165]
[1737647636728,0.00305463,3258.4,3258.0,3.513]
[1737647637225,0.00305463,3258.4,3258.1,0.6138]
[1737647637731,0.00305463,3258.4,3258.0,3.513]
[1737647638134,0.00305463,3258.4,3258.0,4.12682]
[1737647638327,0.00305463,3258.4,3258.0,3.513]
[1737647638537,7.16692143,3258.5,3258.3,3.2078]
[1737647638732,7.16692143,3258.5,3258.4,0.61376]
[1737647639242,2.53028454,3258.5,3258.4,5.61376]
[1737647639537,1.8008,3260.0,3258.8,1.53418]
[1737647639728,0.61349,3259.8,3259.6,3.2078]
[1737647639923,0.00460737,3259.7,3258.8,3.2078]
[1737647640130,0.61355,3259.5,3259.4,0.00460737]
[1737647640336,3.82135,3259.5,3259.4,0.00460737]
[1737647641838,1.53398,3259.3,3258.4,3.2078]
[1737647642041,0.61381,3258.2,3258.0,3.2078]
[1737647642233,0.61381,3258.1,3258.0,3.2078]
[1737647642731,0.61378,3258.3,3257.8,3.2078]
[1737647642947,3.2078,3258.5,3258.2,0.61379]
[1737647643146,0.00460737,3258.4,3258.0,0.61383]
[1737647643336,0.61837737,3258.4,3257.9,0.61385]
[1737647644037,0.00460737,3258.4,3257.9,0.61385]
[1737647644332,0.00460737,3258.4,3257.8,3.2078]
[1737647644723,0.6138,3258.2,3257.8,3.2078]
[1737647645135,0.61836737,3258.4,3257.8,3.82165]
[1737647645331,0.61836737,3258.4,3257.7,0.00460737]
[1737647645332,0.00460737,3258.4,3258.2,3.2078]
[1737647645533,3.2078,3259.3,3258.2,3.2078]
[1737647645744,3.2078,3259.3,3258.5,3.2078]
[1737647645929,3.2078,3259.3,3258.9,0.61365]
[1737647646238,3.2078,3259.5,3258.6,1.761]
[1737647646540,3.2078,3259.5,3258.9,3.82145]
[1737647646729,0.00460737,3259.4,3259.0,0.61363]
[1737647646931,0.00460737,3259.4,3259.0,0.61364]
[1737647647234,0.00460737,3259.4,3259.2,0.61359]
[1737647647533,0.00460737,3259.4,3259.0,0.61364]
[1737647647733,0.00460737,3259.4,3258.9,3.2078]
[1737647648041,0.00460737,3259.4,3259.0,40.8]
[1737647649042,0.00460737,3259.4,3258.9,3.2078]
[1737647649337,0.00460737,3259.4,3257.9,4.87950052]
[1737647649338,0.61372,3258.6,3258.5,3.2078]
[1737647649942,1.777,3259.3,3258.5,3.2078]
[1737647650334,3.2078,3259.1,3258.5,3.2078]
[1737647650537,0.61367,3258.9,3258.5,3.2078]
[1737647651741,0.61365,3259.0,3258.5,3.2078]
[1737647652237,1.777,3259.3,3258.5,3.2078]
[1737647652435,0.61366,3259.0,3258.5,3.2078]
[1737647652637,0.61367,3258.9,3258.5,3.2078]
[1737647652838,0.61368,3258.9,3258.5,3.2078]
[1737647653040,0.61372,3258.6,3258.5,3.2078]
[1737647653942,0.61372,3258.6,3257.7,40.80460737]
[1737647653943,6.10287456,3258.6,3257.7,0.00460737]
[1737647654257,2.89507456,3259.2,3256.9,3.2078]
[1737647654258,0.61398,3257.3,3256.9,3.2078]
[1737647654433,3.2078,3257.4,3256.5,3.2078]
[1737647654633,0.61404,3256.9,3256.4,9.57936254]
[1737647655135,3.2078,3257.0,3256.4,9.57936254]
[1737647655534,3.2078,3257.0,3256.6,7.18912927]
[1737647657744,3.2078,3257.0,3256.6,0.00460737]
[1737647660145,0.61405,3256.9,3256.6,0.00460737]
[1737647660540,3.2078,3257.0,3256.7,40.8]
[1737647661043,0.61406,3256.8,3256.6,0.00460737]
[1737647661533,0.61408,3256.7,3256.6,40.80460737]
[1737647661732,0.61408,3256.7,3256.6,0.00460737]
[1737647664247,0.61418,3256.2,3255.8,4.9292]
[1737647664450,0.61428,3255.6,3255.0,0.61439]
[1737647664746,0.61435,3255.3,3254.7,3.2078]
[1737647664947,3.2078,3255.4,3254.7,3.2078]
[1737647664948,0.61436,3255.2,3254.7,3.2078]
[1737647665151,3.2078,3255.4,3254.7,3.2078]
[1737647665445,0.61436,3255.2,3254.7,3.2078]
[1737647665644,0.00460737,3255.3,3254.7,3.2078]
[1737647665847,0.61896737,3255.3,3254.7,3.2078]
[1737647666248,0.00460737,3255.3,3254.7,3.2078]
[1737647666942,0.00460737,3255.3,3254.9,0.61441]
[1737647667141,0.00460737,3255.3,3254.7,3.2078]
[1737647667343,0.61436,3255.2,3254.7,3.2078]
[1737647667546,0.61895737,3255.3,3254.7,3.2078]
[1737647667749,0.61437,3255.2,3254.7,3.2078]
[1737647668139,0.00460737,3255.3,3254.7,3.2078]
[1737647668337,0.61438,3255.2,3254.7,3.2078]
[1737647668541,0.61895737,3255.3,3254.7,3.2078]
[1737647668848,0.00460737,3255.3,3254.7,3.2078]
[1737647669247,0.00460737,3255.3,3254.7,3.82225]
[1737647669551,0.00460737,3255.3,3255.1,0.61436]
[1737647669753,0.00460737,3255.3,3255.2,0.61436]
[1737647669949,0.00460737,3255.3,3255.2,3.82216]
[1737647670143,3.2078,3256.0,3255.4,0.61431]
[1737647670345,3.2078,3256.0,3255.4,3.34636599]
[1737647670550,3.2078,3256.0,3255.5,40.8]
[1737647670844,3.82201,3256.0,3255.5,40.8]
[1737647671046,3.2078,3256.0,3255.5,40.8]
[1737647671356,0.00460737,3256.1,3255.8,0.61424]
[1737647671952,0.00460737,3256.1,3255.6,3.2078]
[1737647671953,0.00460737,3256.1,3256.0,0.61421]
[1737647672348,3.2078,3256.9,3256.0,8.2078]
[1737647672553,3.2078,3257.4,3256.4,6.55416599]
[1737647672755,3.2078,3257.4,3256.9,0.61404]
[1737647673052,3.2078,3257.4,3256.6,0.61408]
[1737647673053,0.61396,3257.3,3256.6,0.61408]
[1737647673254,3.2078,3257.4,3256.5,1.7907]
[1737647673456,0.61397,3257.3,3256.6,0.6141]
[1737647673758,3.2078,3257.4,3256.5,1.7907]
[1737647673957,3.82175,3257.4,3256.7,0.61407]
[1737647674153,3.2078,3257.4,3256.5,1.7907]
[1737647674553,3.2078,3257.4,3256.6,0.6141]
[1737647674757,3.2078,3257.4,3256.5,1.7907]
[1737647675054,3.2078,3258.1,3257.0,3.2078]
[1737647675247,0.00460737,3257.3,3257.1,0.61399]
[1737647675448,0.00460737,3257.3,3257.0,3.2078]
[1737647675653,0.00460737,3257.3,3257.1,2.31229]
[1737647675859,0.00460737,3257.3,3257.1,1.6983]
[1737647676057,0.00460737,3257.3,3257.1,42.4983]
[1737647676647,0.00460737,3257.3,3257.1,1.6983]
[1737647676952,0.00460737,3257.3,3257.2,0.61398]
[1737647677154,0.00460737,3257.3,3257.1,1.6983]
[1737647677459,0.00460737,3257.3,3257.2,0.61398]
[1737647678250,1.7411,3258.3,3257.8,0.61386]
[1737647678451,3.2078,3258.5,3257.2,6.53495]
[1737647678452,3.2078,3258.5,3257.7,3.2078]
[1737647678652,0.61377,3258.4,3257.7,3.82169]
[1737647679160,3.82155,3258.5,3257.7,3.82169]
[1737647679359,3.82155,3258.5,3257.8,0.61387]
[1737647679560,3.2078,3258.5,3257.7,3.2078]
[1737647679951,3.2078,3258.5,3257.7,3.82168]
[1737647680154,3.82155,3258.5,3257.7,3.82168]
[1737647680349,3.2078,3258.5,3257.7,3.2078]
[1737647680562,2.8955196,3258.6,3257.3,3.2078]
[1737647680563,0.61387,3257.8,3257.3,3.2078]
[1737647680753,3.2078,3258.1,3257.3,3.2078]
[1737647681064,0.61384,3258.0,3257.3,3.82176]
[1737647681254,3.2078,3258.1,3257.5,0.61392]
[1737647681657,3.82162,3258.1,3257.4,0.61394]
[1737647681860,3.82162,3258.1,3257.3,3.2078]
[1737647681861,3.2078,3258.1,3257.3,3.2078]
[1737647682554,0.61394,3257.5,3256.9,3.2078]
[1737647683260,3.2078,3257.7,3256.9,3.2078]
[1737647683261,0.61397,3257.3,3256.9,3.2078]
[1737647684149,0.61397,3257.3,3256.7,0.61406]
[1737647684461,0.61397,3257.3,3256.7,0.61408]
[1737647684663,3.2078,3257.7,3257.3,0.61396]
[1737647684853,3.2078,3257.7,3256.8,2.8955196]
[1737647685048,3.2078,3257.7,3257.1,0.61399]
[1737647685360,0.61391,3257.6,3256.9,0.61404]
[1737647685562,0.61394,3257.5,3256.8,3.5095596]
[1737647685756,0.61391,3257.6,3256.9,0.61404]
[1737647685961,0.61391,3257.6,3257.0,0.61402]
[1737647686268,3.2078,3257.7,3257.2,2.8955196]
[1737647686456,2.95,3258.3,3257.7,0.61389]
[1737647686457,3.2078,3258.2,3257.7,0.61389]
[1737647686651,3.2078,3258.2,3257.6,2.8955196]
[1737647686852,2.95,3258.3,3257.9,0.61384]
[1737647687067,2.95,3258.3,3257.6,4.6304196]
[1737647687258,3.56379,3258.3,3257.7,0.61389]
[1737647687567,2.95,3258.3,3257.6,4.6304196]
[1737647687865,3.56379,3258.3,3257.6,5.2443096]
[1737647688056,2.95,3258.3,3257.7,0.61388]
[1737647688260,0.61378,3258.3,3257.7,0.61388]
[1737647689253,0.61376,3258.4,3257.8,0.61386]
[1737647689456,0.61376,3258.4,3257.7,0.61387]
[1737647689661,0.61379,3258.3,3257.7,0.61387]
[1737647689856,0.61379,3258.3,3257.8,0.61387]
[1737647690053,0.61376,3258.4,3257.8,0.61387]
[1737647690259,3.2078,3258.3,3257.5,3.2078]
[1737647690458,0.61384,3258.0,3257.5,3.2078]
[1737647690660,1.6113,3258.2,3257.5,3.2078]
[1737647690861,0.61381,3258.1,3257.5,3.82172]
[1737647691063,0.61383,3258.0,3257.5,3.2078]
[1737647691268,1.6113,3258.2,3257.5,3.2078]
[1737647691466,0.61387,3257.8,3257.5,3.2078]
[1737647691662,0.61388,3257.8,3257.2,0.61397]
[1737647691870,3.2078,3257.9,3257.1,3.2078]
[1737647692068,0.61396,3257.4,3256.8,2.8955196]
[1737647692264,3.2078,3257.5,3256.7,4.9092]